fUST/lending_fUST_20240902
["ID","MTS","AMOUNT","RATE_DAILY","PERIOD"]
[336861207,1725220244852,-500.0,0.00024657,2]
[336861208,1725220244860,-500.0,0.00024657,2]
[336861209,1725220244870,-500.0,0.00024657,2]
[336861210,1725220244880,-500.0,0.00024657,2]
[336861211,1725220244890,-1840.7,0.00024657,2]
[336861212,1725220244899,-500.0,0.00024657,2]
[336861213,1725220244909,-871.97,0.00024657,2]
[336861214,1725220244918,-500.0,0.00024657,2]
[336861215,1725220244927,-500.0,0.00024657,2]
[336861216,1725220244938,-500.0,0.00024657,2]
[336861217,1725220244949,-500.0,0.00024657,2]
[336861218,1725220244960,-500.0,0.00024657,2]
[336861219,1725220244969,-500.0,0.00024657,2]
[336861220,1725220244981,-500.0,0.00024657,2]
[336861221,1725220244990,-500.0,0.00024657,2]
[336861222,1725220244999,-849.13,0.00024657,2]
[336861223,1725220245010,-502.88084183,0.00024657,2]
[336861224,1725220245024,-500.0,0.00024657,2]
[336861225,1725220245034,-500.0,0.00024657,2]
[336861226,1725220245044,-500.0,0.00024657,2]
[336861227,1725220245053,-500.0,0.00024657,2]
[336861228,1725220245064,-500.0,0.00024657,2]
[336861229,1725220245074,-500.0,0.00024657,2]
[336861230,1725220245084,-507.15802824,0.00024657,2]
[336861231,1725220245096,-3177.69,0.00024657,2]
[336861232,1725220245106,-619.48238355,0.00024657,2]
[336861233,1725220245115,-1428.81,0.00024657,2]
[336861234,1725220245125,-14885.91,0.00024657,2]
[336861235,1725220245136,-828.65,0.00024657,2]
[336861236,1725220245146,-1491.3,0.00024657,2]
[336861237,1725220245155,-2404.41,0.00024657,2]
[336861238,1725220245165,-500.0,0.00024657,2]
[336861239,1725220245174,-500.0,0.00024657,2]
[336861240,1725220245184,-500.0,0.00024657,2]
[336861241,1725220245194,-1946.51,0.00024657,2]
[336861242,1725220245204,-1842.36,0.00024657,2]
[336861243,1725220245214,-500.0,0.00024657,2]
[336861244,1725220245224,-558.16,0.00024657,2]
[336861245,1725220245234,-1792.23,0.00024657,2]
[336861246,1725220245243,-500.0,0.00024657,2]
[336861247,1725220245252,-500.0,0.00024657,2]
[336861248,1725220245262,-2239.07,0.00024657,2]
[336861249,1725220245272,-500.0,0.00024657,2]
[336861250,1725220245282,-500.0,0.00024657,2]
[336861251,1725220245292,-500.0,0.00024657,2]
[336861252,1725220245302,-415.81711232,0.00024657,2]
[336861253,1725220245311,-500.0,0.00024657,2]
[336861254,1725220245321,-500.0,0.00024657,2]
[336861255,1725220245330,-500.0,0.00024657,2]
[336861256,1725220245341,-500.0,0.00024657,2]
[336861257,1725220245350,-2348.55,0.00024657,2]
[336861258,1725220245360,-500.0,0.00024657,2]
[336861259,1725220245369,-579.58,0.00024657,2]
[336861260,1725220245380,-500.0,0.00024657,2]
[336861261,1725220245390,-500.0,0.00024657,2]
[336861262,1725220245399,-500.0,0.00024657,2]
[336861263,1725220245409,-2982.3,0.00024657,2]
[336861264,1725220245419,-500.0,0.00024657,2]
[336861265,1725220245428,-500.0,0.00024657,2]
[336861266,1725220245437,-596.63,0.00024657,2]
[336861267,1725220245447,-500.0,0.00024657,2]
[336861268,1725220245457,-500.0,0.00024657,2]
[336861269,1725220245467,-2997.01,0.00024657,2]
[336861270,1725220245475,-500.0,0.00024657,2]
[336861271,1725220245485,-500.0,0.00024657,2]
[336861272,1725220245495,-500.0,0.00024657,2]
[336861273,1725220245504,-500.0,0.00024657,2]
[336861274,1725220245515,-500.0,0.00024657,2]
[336861275,1725220245524,-500.0,0.00024657,2]
[336861276,1725220245533,-557.48951493,0.00024657,2]
[336861277,1725220245543,-500.0,0.00024657,2]
[336861278,1725220245554,-500.0,0.00024657,2]
[336861279,1725220245563,-500.0,0.00024657,2]
[336861280,1725220245573,-500.0,0.00024657,2]
[336861281,1725220245583,-762.97,0.00024657,2]
[336861282,1725220245593,-500.0,0.00024657,2]
[336861283,1725220245602,-500.0,0.00024657,2]
[336861284,1725220245612,-500.0,0.00024657,2]
[336861285,1725220245624,-703.69,0.00024657,2]
[336861286,1725220245634,-500.0,0.00024657,2]
[336861287,1725220245645,-500.0,0.00024657,2]
[336861288,1725220245655,-1436.26,0.00024657,2]
[336861289,1725220245665,-500.0,0.00024657,2]
[336861290,1725220245675,-500.0,0.00024657,2]
[336861291,1725220245685,-500.0,0.00024657,2]
[336861292,1725220245695,-500.0,0.00024657,2]
[336861293,1725220245705,-500.0,0.00024657,2]
[336861294,1725220245717,-504.44866529,0.00024657,2]
[336861295,1725220245728,-720.27,0.00024657,2]
[336861296,1725220245737,-1538.09,0.00024657,2]
[336861297,1725220245747,-500.0,0.00024657,2]
[336861298,1725220245756,-658.62,0.00024657,2]
[336861299,1725220245766,-500.0,0.00024657,2]
[336861300,1725220245776,-500.0,0.00024657,2]
[336861301,1725220245785,-503.96557598,0.00024657,2]
[336861302,1725220245795,-500.0,0.00024657,2]
[336861303,1725220245805,-500.0,0.00024657,2]
[336861304,1725220245815,-500.0,0.00024657,2]
[336861305,1725220245825,-500.0,0.00024657,2]
[336861306,1725220245836,-500.0,0.00024657,2]
[336861307,1725220245846,-1749.24,0.00024657,2]
[336861308,1725220245856,-500.0,0.00024657,2]
[336861309,1725220245865,-500.0,0.00024657,2]
[336861310,1725220245875,-500.0,0.00024657,2]
[336861311,1725220245896,-500.0,0.00024657,2]
[336861312,1725220245905,-500.0,0.00024657,2]
[336861313,1725220245914,-500.0,0.00024657,2]
[336861314,1725220245924,-528.2546644,0.00024657,2]
[336861315,1725220245934,-500.0,0.00024657,2]
[336861316,1725220245944,-842.64,0.00024657,2]
[336861317,1725220245954,-500.0,0.00024657,2]
[336861318,1725220245963,-500.0,0.00024657,2]
[336861319,1725220245974,-500.0,0.00024657,2]
[336861320,1725220245983,-500.0,0.00024657,2]
[336861321,1725220245993,-500.0,0.00024657,2]
[336861322,1725220246003,-1648.2,0.00024657,2]
[336861323,1725220246013,-500.0,0.00024657,2]
[336861324,1725220246028,-646.27,0.00024657,2]
[336861325,1725220246037,-500.0,0.00024657,2]
[336861326,1725220246047,-500.0,0.00024657,2]
[336861327,1725220246056,-500.0,0.00024657,2]
[336861328,1725220246067,-1503.88,0.00024657,2]
[336861329,1725220246078,-500.0,0.00024657,2]
[336861330,1725220246088,-502.05925854,0.00024657,2]
[336861331,1725220246098,-500.0,0.00024657,2]
[336861332,1725220246107,-500.0,0.00024657,2]
[336861333,1725220246117,-500.0,0.00024657,2]
[336861334,1725220246129,-500.0,0.00024657,2]
[336861335,1725220246139,-500.0,0.00024657,2]
[336861336,1725220246148,-500.0,0.00024657,2]
[336861337,1725220246158,-500.0,0.00024657,2]
[336861338,1725220246168,-500.0,0.00024657,2]
[336861339,1725220246177,-500.0,0.00024657,2]
[336861340,1725220246187,-500.0,0.00024657,2]
[336861341,1725220246196,-500.0,0.00024657,2]
[336861342,1725220246206,-500.0,0.00024657,2]
[336861343,1725220246215,-1088.52,0.00024657,2]
[336861344,1725220246224,-678.43,0.00024657,2]
[336861345,1725220246234,-500.0,0.00024657,2]
[336861346,1725220246244,-500.0,0.00024657,2]
[336861347,1725220246256,-500.0,0.00024657,2]
[336861348,1725220246268,-1129.55,0.00024657,2]
[336861349,1725220246278,-500.0,0.00024657,2]
[336861350,1725220246288,-500.0,0.00024657,2]
[336861351,1725220246298,-500.0,0.00024657,2]
[336861352,1725220246309,-500.0,0.00024657,2]
[336861353,1725220246319,-500.0,0.00024657,2]
[336861354,1725220246328,-500.0,0.00024657,2]
[336861355,1725220246338,-458.16028587,0.00024657,2]
[336861356,1725220246348,-500.0,0.00024657,2]
[336861357,1725220246358,-500.0,0.00024657,2]
[336861358,1725220246367,-1414.5,0.00024657,2]
[336861359,1725220246377,-500.0,0.00024657,2]
[336861360,1725220246387,-505.05089213,0.00024657,2]
[336861361,1725220246397,-500.0,0.00024657,2]
[336861362,1725220246407,-1766.48,0.00024657,2]
[336861363,1725220246417,-500.0,0.00024657,2]
[336861364,1725220246426,-500.0,0.00024657,2]
[336861365,1725220246435,-500.0,0.00024657,2]
[336861366,1725220246445,-500.0,0.00024657,2]
[336861367,1725220246455,-500.0,0.00024657,2]
[336861368,1725220246465,-500.0,0.00024657,2]
[336861369,1725220246474,-500.0,0.00024657,2]
[336861370,1725220246484,-500.0,0.00024657,2]
[336861371,1725220246493,-504.07065381,0.00024657,2]
[336861372,1725220246503,-500.0,0.00024657,2]
[336861373,1725220246512,-500.0,0.00024657,2]
[336861374,1725220246522,-557.99,0.00024657,2]
[336861375,1725220246531,-748.97,0.00024657,2]
[336861376,1725220246540,-1804.34,0.00024657,2]
[336861377,1725220246550,-1624.73,0.00024657,2]
[336861378,1725220246560,-500.0,0.00024657,2]
[336861379,1725220246570,-500.0,0.00024657,2]
[336861380,1725220246579,-500.0,0.00024657,2]
[336861381,1725220246589,-500.0,0.00024657,2]
[336861382,1725220246598,-500.0,0.00024657,2]
[336861383,1725220246607,-733.2,0.00024657,2]
[336861384,1725220246617,-1026.45,0.00024657,2]
[336861385,1725220246627,-500.0,0.00024657,2]
[336861386,1725220246637,-500.0,0.00024657,2]
[336861387,1725220246646,-2634.53,0.00024657,2]
[336861388,1725220246656,-500.24314518,0.00024657,2]
[336861389,1725220246665,-500.0,0.00024657,2]
[336861390,1725220246675,-500.0,0.00024657,2]
[336861391,1725220246685,-500.0,0.00024657,2]
[336861392,1725220246694,-500.0,0.00024657,2]
[336861393,1725220246704,-500.0,0.00024657,2]
[336861394,1725220246713,-771.11,0.00024657,2]
[336861395,1725220246723,-1494.38,0.00024657,2]
[336861396,1725220246733,-500.0,0.00024657,2]
[336861397,1725220246742,-500.0,0.00024657,2]
[336861398,1725220246751,-500.0,0.00024657,2]
[336861399,1725220246762,-500.0,0.00024657,2]
[336861400,1725220246772,-1766.03,0.00024657,2]
[336861401,1725220246782,-500.0,0.00024657,2]
[336861402,1725220246791,-500.0,0.00024657,2]
[336861403,1725220246801,-775.26,0.00024657,2]
[336861404,1725220246810,-1998.14,0.00024657,2]
[336861405,1725220246819,-500.0,0.00024657,2]
[336861406,1725220246829,-1186.35,0.00024657,2]
[336861407,1725220246839,-501.51023586,0.00024657,2]
[336861408,1725220246848,-747.23,0.00024657,2]
[336861409,1725220246858,-500.0,0.00024657,2]
[336861410,1725220246867,-795.14,0.00024657,2]
[336861411,1725220246877,-500.0,0.00024657,2]
[336861412,1725220246887,-1210.09,0.00024657,2]
[336861413,1725220246896,-500.0,0.00024657,2]
[336861414,1725220246906,-500.0,0.00024657,2]
[336861415,1725220246917,-1485.31,0.00024657,2]
[336861416,1725220246926,-500.0,0.00024657,2]
[336861417,1725220246935,-500.0,0.00024657,2]
[336861418,1725220246945,-500.0,0.00024657,2]
[336861419,1725220246955,-500.0,0.00024657,2]
[336861420,1725220246966,-1290.25,0.00024657,2]
[336861421,1725220246975,-567.52,0.00024657,2]
[336861422,1725220246984,-500.0,0.00024657,2]
[336861423,1725220246993,-405.66399711,0.00024657,2]
[336861424,1725220247002,-500.0,0.00024657,2]
[336861425,1725220247012,-200.0,0.00024657,2]
[336861426,1725220247029,-500.0,0.00024657,2]
[336861427,1725220247042,-500.0,0.00024657,2]
[336861428,1725220247053,-500.0,0.00024657,2]
[336861429,1725220247064,-500.0,0.00024657,2]
[336861430,1725220247074,-500.0,0.00024657,2]
[336861431,1725220247219,-500.0,0.00024657,2]
[336861432,1725220247228,-6057.72,0.00024657,2]
[336861433,1725220247238,-500.0,0.00024657,2]
[336861434,1725220247247,-1327.14,0.00024657,2]
[336861435,1725220247257,-280.06400868,0.00024657,2]
[336861436,1725220247266,-1503.87,0.00024657,2]
[336861437,1725220247275,-732.64,0.00024657,2]
[336861438,1725220247284,-1148.79,0.00024657,2]
[336861439,1725220247293,-500.0,0.00024657,2]
[336861440,1725220247304,-500.0,0.00024657,2]
[336861441,1725220247313,-500.0,0.00024657,2]
[336861442,1725220247323,-521.10866005,0.00024657,2]
[336861443,1725220247333,-203.86507882,0.00024657,2]
[336861444,1725220247343,-1772.48,0.00024657,2]
[336861445,1725220247356,-500.0,0.00024672,2]
[336861446,1725220247366,-500.0,0.00024673,2]
[336861447,1725220247378,-4413.0085602,0.00024921,3]
[336861448,1725220247389,-993.24,0.0002493,2]
[336861449,1725220247399,-993.24,0.0002493,2]
[336861450,1725220247410,-993.24,0.0002493,2]
[336861451,1725220247422,-993.24,0.0002493,2]
[336861452,1725220247432,-993.24,0.0002493,2]
[336861453,1725220247443,-993.24,0.0002493,2]
[336861454,1725220247454,-2286.57,0.0002493,2]
[336861455,1725220247463,-736.46,0.0002493,2]
[336861456,1725220247473,-500.0,0.0002493,2]
[336861457,1725220247482,-500.0,0.0002493,2]
[336861458,1725220247491,-500.0,0.0002493,2]
[336861459,1725220247501,-500.0,0.0002493,2]
[336861460,1725220247511,-263.14957392,0.0002493,2]
[336861461,1725220247521,-1658.39,0.0002493,2]
[336861462,1725220247530,-1034.98,0.0002493,2]
[336861463,1725220247539,-500.0,0.0002493,2]
[336861464,1725220247548,-500.0,0.0002493,2]
[336861465,1725220247558,-475.2,0.0002493,2]
[336861466,1725220247568,-828.02,0.0002493,2]
[336861467,1725220247577,-546.15,0.0002493,2]
[336861468,1725220247586,-7675.38,0.0002493,2]
[336861469,1725220247596,-1529.18,0.0002493,2]
[336861470,1725220247605,-678.33,0.0002493,2]
[336861471,1725220247615,-1741.29,0.0002493,2]
[336861472,1725220247626,-416.09270288,0.0002493,2]
[336861473,1725220247636,-3271.16,0.0002493,2]
[336861474,1725220247646,-2206.77,0.0002493,2]
[336861475,1725220247655,-2327.32,0.0002493,2]
[336861476,1725220247665,-1374.59,0.0002493,2]
[336861477,1725220247675,-550.76,0.0002493,2]
[336861478,1725220247686,-511.6782946,0.00024931,11]
[336861479,1725220247697,-500.0,0.00024931,2]
[336861480,1725220247708,-500.0,0.00024931,2]
[336861481,1725220247718,-500.0,0.00024931,2]
[336861482,1725220247728,-500.0,0.00024931,2]
[336861483,1725220247739,-500.0,0.00024931,2]
[336861484,1725220247748,-500.0,0.00024931,2]
[336861485,1725220247759,-500.0,0.00024931,2]
[336861486,1725220247768,-500.0,0.00024931,2]
[336861487,1725220247777,-500.0,0.00024931,2]
[336861488,1725220247786,-500.0,0.00024931,2]
[336861489,1725220247795,-500.0,0.00024931,2]
[336861490,1725220247804,-500.0,0.00024931,2]
[336861491,1725220247814,-827.6,0.00024931,2]
[336861492,1725220247824,-500.0,0.00024931,2]
[336861493,1725220247834,-500.0,0.00024931,2]
[336861494,1725220247844,-500.0,0.00024931,2]
[336861495,1725220247855,-500.59,0.00024931,2]
[336861496,1725220247865,-500.0,0.00024931,2]
[336861497,1725220247875,-500.0,0.00024931,2]
[336861498,1725220247885,-500.0,0.00024931,2]
[336861499,1725220247894,-500.0,0.00024931,2]
[336861500,1725220247904,-500.0,0.00024931,2]
[336861501,1725220247913,-500.0,0.00024931,2]
[336861502,1725220247923,-500.0,0.00024931,2]
[336861503,1725220247931,-416.61689695,0.00024931,2]
[336861504,1725220247940,-525.89767065,0.00024931,2]
[336861505,1725220247950,-500.0,0.00024931,2]
[336861506,1725220247959,-1070.71,0.00024931,2]
[336861507,1725220247969,-583.3,0.00024931,2]
[336861508,1725220247979,-585.76,0.00024931,2]
[336861509,1725220247989,-645.80779385,0.00024931,2]
[336861510,1725220247998,-500.0,0.00024931,2]
[336861511,1725220248007,-420.58768688,0.00024931,2]
[336861512,1725220248018,-668.73,0.00024931,2]
[336861513,1725220248029,-294.91349024,0.00024931,2]
[336861514,1725220248038,-500.0,0.00024931,2]
[336861515,1725220248047,-500.0,0.00024931,2]
[336861516,1725220248057,-500.0,0.00024931,2]
[336861517,1725220248067,-521.09,0.00024931,2]
[336861518,1725220248076,-500.0,0.00024931,2]
[336861519,1725220248086,-500.0,0.00024931,2]
[336861520,1725220248095,-1573.85,0.00024931,2]
[336861521,1725220248106,-500.0,0.00024931,2]
[336861522,1725220248117,-515.89,0.00024931,2]
[336861523,1725220248127,-500.0,0.00024931,2]
[336861524,1725220248137,-541.22,0.00024931,2]
[336861525,1725220248147,-500.0,0.00024931,2]
[336861526,1725220248156,-500.0,0.00024931,2]
[336861527,1725220248166,-500.0,0.00024931,2]
[336861528,1725220248175,-500.0,0.00024931,2]
[336861529,1725220248184,-500.0,0.00024931,2]
[336861530,1725220248195,-1024.3,0.00024931,2]
[336861531,1725220248204,-500.0,0.00024931,2]
[336861532,1725220248213,-500.0,0.00024931,2]
[336861533,1725220248222,-500.0,0.00024931,2]
[336861534,1725220248232,-403.36437749,0.00024931,2]
[336861535,1725220248241,-500.0,0.00024931,2]
[336861536,1725220248251,-776.53,0.00024931,2]
[336861537,1725220248260,-500.0,0.00024931,2]
[336861538,1725220248269,-597.29,0.00024931,2]
[336861539,1725220248279,-408.33154517,0.00024931,2]
[336861540,1725220248288,-500.0,0.00024931,2]
[336861541,1725220248298,-262.95464729,0.00024931,2]
[336861542,1725220248307,-500.0,0.00024931,2]
[336861543,1725220248319,-500.0,0.00024931,2]
[336861544,1725220248329,-500.0,0.00024931,2]
[336861545,1725220248338,-500.0,0.00024931,2]
[336861546,1725220248348,-755.54,0.00024931,2]
[336861547,1725220248357,-500.0,0.00024931,2]
[336861548,1725220248378,-500.0,0.00024931,2]
[336861549,1725220248390,-704.21,0.00024931,2]
[336861550,1725220248400,-500.0,0.00024931,2]
[336861551,1725220248411,-500.0,0.00024931,2]
[336861552,1725220248421,-500.0,0.00024931,2]
[336861553,1725220248431,-500.0,0.00024931,2]
[336861554,1725220248441,-304.74475444,0.00024931,2]
[336861555,1725220248451,-500.0,0.00024931,2]
[336861556,1725220248461,-500.0,0.00024931,2]
[336861557,1725220248471,-500.0,0.00024931,2]
[336861558,1725220248481,-500.0,0.00024931,2]
[336861559,1725220248491,-500.0,0.00024931,2]
[336861560,1725220248501,-500.0,0.00024931,2]
[336861561,1725220248511,-500.0,0.00024931,2]
[336861562,1725220248521,-500.0,0.00024931,2]
[336861563,1725220248531,-888.83,0.00024931,2]
[336861564,1725220248540,-500.0,0.00024931,2]
[336861565,1725220248550,-504.72649526,0.00024931,2]
[336861566,1725220248559,-500.0,0.00024931,2]
[336861567,1725220248570,-503.75109237,0.00024931,2]
[336861568,1725220248579,-578.31,0.00024931,2]
[336861569,1725220248589,-500.0,0.00024931,2]
[336861570,1725220248598,-500.0,0.00024931,2]
[336861571,1725220248608,-500.0,0.00024931,2]
[336861572,1725220248618,-500.0,0.00024931,2]
[336861573,1725220248628,-155.00327664,0.00024931,2]
[336861574,1725220248638,-765.48,0.00024931,2]
[336861575,1725220248649,-500.0,0.00024931,2]
[336861576,1725220248659,-500.0,0.00024931,2]
[336861577,1725220248669,-500.0,0.00024931,2]
[336861578,1725220248679,-2886.95952887,0.00024931,2]
[336861579,1725220248895,-612.20047113,0.00024931,2]
[336861580,1725220248906,-500.0,0.00024931,2]
[336861581,1725220248922,-500.0,0.00024931,2]
[336861582,1725220248932,-500.0,0.00024931,2]
[336861583,1725220248942,-500.0,0.00024931,2]
[336861584,1725220248953,-500.0,0.00024931,2]
[336861585,1725220248963,-500.0,0.00024931,2]
[336861586,1725220248973,-1189.99,0.00024931,2]
[336861587,1725220248983,-500.0,0.00024931,2]
[336861588,1725220248993,-500.0,0.00024931,2]
[336861589,1725220249004,-527.91,0.00024931,2]
[336861590,1725220249014,-500.0,0.00024931,2]
[336861591,1725220249029,-500.0,0.00024931,2]
[336861592,1725220249039,-500.0,0.00024931,2]
[336861593,1725220249048,-500.0,0.00024931,2]
[336861594,1725220249058,-500.0,0.00024931,2]
[336861595,1725220249071,-500.0,0.00024931,2]
[336861596,1725220249081,-623.88,0.00024931,2]
[336861597,1725220249090,-500.0,0.00024931,2]
[336861598,1725220249101,-500.0,0.00024931,2]
[336861599,1725220249111,-697.81,0.00024931,2]
[336861600,1725220249121,-500.0,0.00024931,2]
[336861601,1725220249131,-500.0,0.00024931,2]
[336861602,1725220249141,-500.0,0.00024931,2]
[336861603,1725220249150,-500.0,0.00024931,2]
[336861604,1725220249159,-306.81856574,0.00024931,2]
[336861605,1725220249169,-500.0,0.00024931,2]
[336861606,1725220249178,-500.0,0.00024931,2]
[336861607,1725220249188,-500.0,0.00024931,2]
[336861608,1725220249198,-500.0,0.00024931,2]
[336861609,1725220249208,-500.0,0.00024931,2]
[336861610,1725220249218,-633.07,0.00024931,2]
[336861611,1725220249227,-511.25,0.00024931,2]
[336861612,1725220249237,-500.0,0.00024931,2]
[336861613,1725220249246,-500.0,0.00024931,2]
[336861614,1725220249255,-500.0,0.00024931,2]
[336861615,1725220249265,-500.0,0.00024931,2]
[336861616,1725220249274,-500.0,0.00024931,2]
[336861617,1725220249284,-500.0,0.00024931,2]
[336861618,1725220249293,-500.0,0.00024931,2]
[336861619,1725220249303,-500.0,0.00024931,2]
[336861620,1725220249313,-500.0,0.00024931,2]
[336861621,1725220249323,-500.0,0.00024931,2]
[336861622,1725220249333,-500.0,0.00024931,2]
[336861623,1725220249343,-630.32934669,0.00024931,2]
[336861624,1725220249352,-500.0,0.00024931,2]
[336861625,1725220249362,-196.89521947,0.00024931,2]
[336861626,1725220249372,-489.8,0.00024931,2]
[336861627,1725220249383,-278.51,0.00024931,2]
[336861628,1725220249395,-500.0,0.00024931,2]
[336861629,1725220249406,-500.0,0.00024931,2]
[336861630,1725220249419,-1066.22,0.00024931,2]
[336861631,1725220249429,-500.0,0.00024931,2]
[336861632,1725220249440,-500.0,0.00024931,2]
[336861633,1725220249451,-500.0,0.00024931,2]
[336861634,1725220249461,-771.46,0.00024931,2]
[336861635,1725220249471,-500.0,0.00024931,2]
[336861636,1725220249481,-2083.88,0.00024931,2]
[336861637,1725220249491,-500.0,0.00024931,2]
[336861638,1725220249501,-500.0,0.00024931,2]
[336861639,1725220249510,-1001.26,0.00024931,2]
[336861640,1725220249520,-1962.97,0.00024931,2]
[336861641,1725220249529,-500.0,0.00024931,2]
[336861642,1725220249542,-500.0,0.00024931,2]
[336861643,1725220249553,-500.0,0.00024931,2]
[336861644,1725220249563,-1840.7,0.00024931,2]
[336861645,1725220249574,-871.97,0.00024931,2]
[336861646,1725220249584,-500.0,0.00024931,2]
[336861647,1725220249595,-500.0,0.00024931,2]
[336861648,1725220249604,-500.0,0.00024931,2]
[336861649,1725220249614,-500.0,0.00024931,2]
[336861650,1725220249623,-500.0,0.00024931,2]
[336861651,1725220249634,-849.13,0.00024931,2]
[336861652,1725220249643,-524.54605929,0.00024931,2]
[336861653,1725220249653,-500.0,0.00024931,2]
[336861654,1725220249663,-500.0,0.00024931,2]
[336861655,1725220249673,-500.0,0.00024931,2]
[336861656,1725220249683,-500.0,0.00024931,2]
[336861657,1725220249692,-3177.69,0.00024931,2]
[336861658,1725220249702,-1428.81,0.00024931,2]
[336861659,1725220249711,-14885.91,0.00024931,2]
[336861660,1725220249721,-828.65,0.00024931,2]
[336861661,1725220249731,-1491.3,0.00024931,2]
[336861662,1725220249741,-2404.41,0.00024931,2]
[336861663,1725220249751,-500.0,0.00024931,2]
[336861664,1725220249760,-1842.36,0.00024931,2]
[336861665,1725220249770,-1946.51,0.00024931,2]
[336861666,1725220249779,-500.0,0.00024931,2]
[336861667,1725220249789,-558.16,0.00024931,2]
[336861668,1725220249799,-1792.23,0.00024931,2]
[336861669,1725220249809,-500.0,0.00024931,2]
[336861670,1725220249818,-500.0,0.00024931,2]
[336861671,1725220249828,-2239.07,0.00024931,2]
[336861672,1725220249839,-500.0,0.00024931,2]
[336861673,1725220249848,-500.0,0.00024931,2]
[336861674,1725220250021,-500.0,0.00024931,2]
[336861675,1725220250031,-500.0,0.00024931,2]
[336861676,1725220250041,-500.0,0.00024931,2]
[336861677,1725220250050,-500.0,0.00024931,2]
[336861678,1725220250062,-500.0,0.00024931,2]
[336861679,1725220250073,-2348.55,0.00024931,2]
[336861680,1725220250082,-500.0,0.00024931,2]
[336861681,1725220250092,-579.58,0.00024931,2]
[336861682,1725220250103,-500.0,0.00024931,2]
[336861683,1725220250112,-500.0,0.00024931,2]
[336861684,1725220250121,-2982.3,0.00024931,2]
[336861685,1725220250130,-500.0,0.00024931,2]
[336861686,1725220250141,-500.0,0.00024931,2]
[336861687,1725220250150,-596.63,0.00024931,2]
[336861688,1725220250160,-500.0,0.00024931,2]
[336861689,1725220250169,-500.0,0.00024931,2]
[336861690,1725220250179,-2997.01,0.00024931,2]
[336861691,1725220250188,-500.0,0.00024931,2]
[336861692,1725220250198,-206.64923251,0.00024931,2]
[336861693,1725220250206,-500.0,0.00024931,2]
[336861694,1725220250216,-500.0,0.00024931,2]
[336861695,1725220250224,-302.37385269,0.00024931,2]
[336861696,1725220250234,-500.0,0.00024931,2]
[336861697,1725220250243,-565.48646795,0.00024931,2]
[336861698,1725220250252,-500.0,0.00024931,2]
[336861699,1725220250261,-500.0,0.00024931,2]
[336861700,1725220250271,-762.97,0.00024931,2]
[336861701,1725220250280,-500.0,0.00024931,2]
[336861702,1725220250290,-500.0,0.00024931,2]
[336861703,1725220250299,-703.69,0.00024931,2]
[336861704,1725220250309,-500.0,0.00024931,2]
[336861705,1725220250319,-500.0,0.00024931,2]
[336861706,1725220250328,-1436.26,0.00024931,2]